bitfinex-derivatives/quotes_ETHF0:USTF0_20220108
["timestamp","ask_amount","ask_price","bid_price","bid_amount"]
[1641648415267,0.78164145,3191.7,3190.7,0.82524]
[1641648416166,0.78164145,3191.7,3190.8,3.06621487]
[1641648416368,0.78164145,3191.7,3190.9,0.07832]
[1641648416569,0.77964145,3191.7,3190.9,0.07832]
[1641648416768,0.77964145,3191.7,3191.6,2.00479]
[1641648416967,0.03,3191.9,3191.6,2.90599]
[1641648419370,0.294788,3191.9,3191.6,2.90599]
[1641648419571,0.640787,3191.8,3191.6,2.90599]
[1641648420170,0.294788,3191.9,3191.6,2.90599]
[1641648420570,0.03,3191.9,3191.6,2.90599]
[1641648423073,0.294788,3191.9,3191.6,2.90599]
[1641648424478,0.03,3191.9,3191.6,2.90599]
[1641648428779,0.264788,3191.8,3191.6,2.90599]
[1641648430685,0.03,3191.9,3191.6,2.90599]
[1641648432381,0.03,3191.9,3191.6,4.40599]
[1641648432582,1.04161465,3192.7,3191.6,18.71594918]
[1641648432784,25.33931465,3192.9,3191.7,0.07831]
[1641648432982,22.474,3192.8,3192.7,2.00479]
[1641648433182,0.640787,3192.8,3192.7,2.80849]
[1641648433383,1.07161465,3192.9,3192.7,2.80849]
[1641648434284,0.03,3192.9,3192.7,2.80849]
[1641648434483,0.03,3192.9,3192.7,0.88852467]
[1641648439191,0.03,3192.9,3192.8,0.07829]
[1641648440190,0.78178217,3193.6,3192.8,3.14350957]
[1641648440391,0.78178217,3193.6,3193.0,1.5]
[1641648440691,1.07161465,3193.8,3193.1,0.07828]
[1641648440890,0.03,3193.8,3193.7,2.00479]
[1641648441090,0.03,3193.8,3193.7,2.90169]
[1641648444991,0.03,3193.8,3193.7,0.8969]
[1641648445193,0.03,3193.8,3193.0,24.47937]
[1641648445393,0.6211,3193.8,3192.6,0.07828]
[1641648445596,0.6211,3193.8,3192.5,1.64368578]
[1641648445797,0.6211,3193.8,3192.5,0.07828]
[1641648446195,0.6211,3193.8,3192.5,1.57828]
[1641648446396,0.6211,3193.8,3192.5,0.07828]
[1641648446999,2.00479,3193.6,3192.9,2.00479]
[1641648447196,0.264788,3193.5,3192.9,2.00479]
[1641648448602,0.264788,3193.5,3192.5,1.64365883]
[1641648449001,0.264788,3193.5,3192.6,2.00479]
[1641648449301,0.264788,3193.5,3192.8,1.56523917]
[1641648449903,1.76471059,3193.5,3192.7,0.07828]
[1641648450108,2.63721059,3193.5,3192.6,2.00479]
[1641648450308,1.137288,3193.5,3192.6,2.00479]
[1641648450905,2.00479,3193.2,3192.6,2.00479]
[1641648451106,0.264788,3193.1,3192.6,2.00479]
[1641648451305,0.905575,3193.1,3192.6,2.00479]
[1641648457108,0.905575,3193.1,3192.6,2.92429]
[1641648460212,0.264788,3193.1,3192.6,2.92429]
[1641648460413,2.00479,3193.2,3192.7,1.5]
[1641648460613,2.00479,3193.6,3192.7,1.5]
[1641648460811,2.00479,3193.6,3192.9,1.56520732]
[1641648461011,0.640787,3193.5,3192.9,1.56520732]
[1641648461313,0.264788,3193.4,3192.9,1.56520732]
[1641648461714,0.264788,3193.4,3192.7,0.07828]
[1641648461913,0.264788,3193.4,3192.6,2.00479]
[1641648465915,0.264788,3193.4,3192.6,2.08307]
[1641648467219,0.264788,3193.4,3192.6,2.00479]
[1641648467919,1.76471059,3193.4,3192.6,2.00479]
[1641648468118,1.49992259,3193.2,3192.6,2.00479]
[1641648468323,0.264788,3193.1,3192.6,2.00479]
[1641648474725,1.04657017,3193.1,3192.6,2.00479]
[1641648475726,0.264788,3193.1,3192.6,2.00479]
[1641648487238,2.00479,3193.2,3192.6,2.00479]
[1641648488944,2.00479,3193.2,3192.6,2.08307]
[1641648490345,2.269578,3193.2,3192.6,2.08307]
[1641648490944,2.269578,3193.2,3192.7,1.29291121]
[1641648493050,0.78178217,3193.1,3192.7,1.29291121]
[1641648493251,0.264788,3193.0,3192.7,1.29291121]
[1641648493550,2.00479,3192.8,3192.7,1.29291121]
[1641648493750,2.910365,3192.8,3192.7,1.29291121]
[1641648494351,3.69214717,3192.8,3192.4,1.29291121]
[1641648495553,3.69214717,3192.8,3192.4,0.79318395]
[1641648496555,0.78178217,3192.7,3192.4,0.79318395]
[1641648496956,0.264788,3192.6,3192.4,0.79318395]
[1641648498860,0.264788,3192.6,3192.5,0.79318395]
[1641648499060,0.264788,3192.6,3192.5,1.52148395]
[1641648499762,0.264788,3192.6,3192.5,2.02121121]
[1641648503669,1.04657017,3192.6,3192.5,0.7283]
[1641648504567,1.04657017,3192.6,3192.4,0.79318395]
[1641648504767,1.04657017,3192.6,3192.5,1.29298091]
[1641648504968,1.04657017,3192.6,3192.5,2.15538091]
[1641648506667,1.04657017,3192.6,3192.5,1.36219696]
[1641648508169,0.264788,3192.6,3192.5,0.8624]
[1641648508771,2.00479,3192.8,3192.5,0.8624]
[1641648509170,0.264788,3192.8,3192.5,0.8624]
[1641648509572,2.00479,3193.2,3192.5,0.8624]
[1641648509771,2.00479,3193.2,3192.7,2.00479]
[1641648510374,2.00479,3193.2,3192.7,2.59459]
[1641648512074,2.910365,3193.2,3192.7,2.59459]
[1641648513474,0.264788,3193.2,3192.7,2.59459]
[1641648514476,0.905575,3193.2,3192.7,2.59459]
[1641648517179,0.905575,3193.2,3192.7,0.5898]
[1641648517378,0.905575,3193.2,3192.5,2.00479]
[1641648517878,2.00479,3193.0,3192.5,2.00479]
[1641648518078,0.264788,3192.9,3192.5,2.00479]
[1641648521378,2.645577,3193.2,3192.5,2.00479]
[1641648521580,2.645577,3193.2,3192.5,2.92829]
[1641648522178,23.6959,3193.7,3192.6,1.5]
[1641648522381,0.03,3193.8,3193.1,1.5]
[1641648523879,0.03,3193.8,3193.2,1.5]
[1641648524079,0.03,3193.8,3193.7,2.00479]
[1641648529185,23.5391,3194.6,3193.8,0.07827]
[1641648529386,22.8816,3195.4,3193.9,1.5]
[1641648529588,22.8816,3195.4,3194.0,0.07825]
[1641648529985,2.00479,3195.3,3194.5,2.00479]
[1641648532690,22.8816,3195.4,3194.5,2.00479]
[1641648532988,22.8816,3195.4,3194.6,0.07824]
[1641648533197,22.8816,3195.4,3194.6,0.86534]
[1641648533388,24.5408,3195.5,3194.6,0.86534]
[1641648533788,0.03,3195.6,3194.6,2.36534]
[1641648534089,0.03,3195.6,3194.6,2.42962181]
[1641648534291,0.03,3195.6,3194.6,3.92962181]
[1641648534489,0.03,3195.6,3194.8,1.5]
[1641648534689,0.03,3195.6,3194.9,0.07824]
[1641648535989,0.03,3195.6,3195.5,2.00479]
[1641648536189,0.03,3195.6,3195.5,2.76569]
[1641648538592,22.2426,3196.4,3195.5,4.26569]
[1641648538792,0.03,3196.5,3195.8,1.5]
[1641648539092,0.03,3196.5,3196.1,37.20414667]
[1641648539691,0.03,3196.5,3196.2,1.2015043]
[1641648539893,0.03,3196.5,3196.2,2.0134043]
[1641648540093,0.03,3197.5,3196.4,17.45958]
[1641648540296,0.03,3197.5,3196.9,1.56324498]
[1641648540494,0.03,3197.5,3197.0,0.07818]
[1641648540695,0.03,3197.5,3197.0,1.2275259]
[1641648541498,0.03,3197.5,3197.0,1.1493459]
[1641648541697,0.03,3197.5,3196.9,2.41044498]
[1641648542096,0.03,3197.5,3197.4,2.00479]
[1641648543599,0.03,3197.5,3197.1,2.00479]
[1641648543800,0.7357,3197.5,3197.1,2.00479]
[1641648543999,0.7357,3197.5,3196.5,2.00479]
[1641648544000,2.00479,3197.3,3196.5,2.00479]
[1641648544201,0.640787,3197.2,3196.5,2.00479]
[1641648544401,0.264788,3197.1,3196.5,2.00479]
[1641648548415,0.264788,3197.1,3196.2,2.00479]
[1641648550218,0.264788,3197.1,3196.9,2.00479]
[1641648550419,0.264788,3197.1,3196.9,2.83069]
[1641648550918,0.640787,3197.2,3196.9,2.83069]
[1641648551117,0.640787,3197.3,3196.9,2.83069]
[1641648552318,0.905575,3197.3,3196.9,2.83069]
[1641648552618,0.640787,3197.3,3196.9,2.83069]
[1641648552818,0.03,3197.5,3196.9,2.83069]
[1641648553221,0.670787,3197.5,3196.9,2.83069]
[1641648553422,0.935575,3197.5,3196.9,2.83069]
[1641648555424,0.03,3197.5,3196.9,2.83069]
[1641648555624,0.03,3197.5,3197.0,1.57818]
[1641648555824,0.03,3197.5,3197.0,3.14135656]
[1641648556023,0.03,3197.5,3197.0,1.64135656]
[1641648556223,0.03,3197.5,3197.4,2.00479]
[1641648557723,0.03,3198.4,3197.4,2.00479]
[1641648558123,0.03,3198.4,3197.8,2.00479]
[1641648558324,0.03,3198.4,3197.8,2.64589]
[1641648559222,0.264788,3198.3,3197.8,2.64589]
[1641648559624,0.03,3198.4,3197.8,2.64589]
[1641648561427,0.03,3198.4,3198.2,1.5626001]
[1641648561626,0.03,3198.4,3198.3,0.07815]
[1641648562126,0.03,3198.4,3198.3,2.08294]
[1641648563026,2.00479,3199.4,3198.3,16.95479]
[1641648563228,47.5983,3199.6,3198.4,0.07814]
[1641648563627,23.833,3199.6,3198.5,1.30696687]
[1641648563825,13.48,3201.1,3198.6,0.07814]
[1641648564025,13.48,3201.1,3198.6,3.14054967]
[1641648564026,46.2236,3200.2,3198.6,3.14054967]
[1641648564224,2.00479,3200.1,3199.2,2.00479]
[1641648564424,2.00479,3200.1,3199.2,2.62479]
[1641648565525,0.03,3200.2,3199.2,2.62479]
[1641648567628,0.03,3200.2,3199.3,0.07813]
[1641648568227,0.03,3200.2,3199.8,2.00479]
[1641648568429,0.905575,3200.1,3199.8,2.00479]
[1641648568629,1.49992259,3199.9,3199.8,2.00479]
[1641648568832,2.09882259,3199.9,3199.8,2.00479]
[1641648569030,0.5989,3199.9,3199.8,2.00479]
[1641648569630,2.09882259,3199.9,3199.2,2.00479]
[1641648569833,1.49992259,3199.3,3198.2,0.07813]
[1641648570132,1.49992259,3198.9,3198.2,0.07813]
[1641648570331,0.264788,3198.8,3198.3,2.00479]
[1641648570733,0.7209,3198.9,3198.3,2.00479]
[1641648570943,0.640787,3198.8,3198.3,2.00479]
[1641648571537,0.640787,3198.8,3198.0,2.00479]
[1641648571538,1.76471059,3198.7,3198.0,2.00479]
[1641648572332,2.00479,3198.5,3198.0,2.00479]
[1641648572533,2.269578,3198.5,3198.0,2.00479]
[1641648573033,0.264788,3198.5,3198.0,2.00479]
[1641648573232,0.640787,3198.8,3198.0,2.00479]
[1641648573433,0.264788,3198.7,3198.1,0.07815]
[1641648574833,0.264788,3198.7,3198.0,4.62828]
[1641648576134,0.264788,3198.7,3198.0,4.70643]
[1641648578235,0.264788,3198.7,3198.6,2.00479]
[1641648578436,2.00479,3199.4,3198.6,2.00479]
[1641648578635,0.264788,3199.3,3198.6,2.00479]
[1641648578837,0.640787,3199.2,3198.6,2.00479]
[1641648579138,0.264788,3199.1,3198.6,2.00479]
[1641648582241,1.76471059,3199.1,3198.6,2.00479]
[1641648582441,0.264788,3199.1,3198.6,2.00479]
[1641648586341,1.49992259,3198.7,3198.0,0.07815]
[1641648586542,0.264788,3198.6,3197.4,0.07815]
[1641648586843,1.56316923,3198.9,3197.3,47.7238]
[1641648587242,13.45,3198.7,3197.3,47.7238]
[1641648587545,13.45,3198.7,3197.3,49.28684951]
[1641648587744,13.45,3198.7,3197.3,24.94064951]
[1641648588241,13.45,3198.7,3197.7,2.00479]
[1641648588444,2.00479,3198.5,3197.7,2.00479]
[1641648588642,0.905575,3198.4,3197.7,2.00479]
[1641648589842,0.905575,3198.4,3197.4,2.00479]
[1641648596353,0.905575,3198.4,3198.0,2.00479]
[1641648596653,0.905575,3198.4,3198.0,2.62409]
[1641648597254,0.264788,3198.4,3198.0,2.62409]
[1641648597455,1.49992259,3199.0,3198.0,2.62409]
[1641648597857,0.78292761,3198.8,3198.0,2.62409]
[1641648598657,0.78292761,3198.9,3198.0,2.62409]
[1641648598956,0.78292761,3198.9,3198.1,1.56265627]
[1641648599157,23.5078,3199.1,3198.1,1.64080627]
[1641648599559,0.78292761,3198.7,3198.4,0.78650459]
[1641648599857,0.78292761,3198.7,3198.5,0.91172208]
[1641648600057,0.78292761,3198.9,3198.6,0.86464459]
[1641648600457,0.78292761,3198.9,3198.8,2.00479]
[1641648600657,0.78292761,3198.9,3198.8,2.88669]
[1641648601157,0.78292761,3199.0,3198.8,2.88669]
[1641648601358,0.78292761,3199.0,3198.8,2.96483]
[1641648602457,0.78292761,3199.0,3198.8,4.96962]
[1641648603862,0.78292761,3199.1,3198.8,5.75612459]
[1641648604764,0.78292761,3199.2,3198.8,4.96962]
[1641648605062,0.78292761,3199.2,3198.8,18.41962]
[1641648605264,0.78292761,3199.2,3198.8,4.96962]
[1641648606266,0.78292761,3199.2,3198.8,19.91962]
[1641648606564,0.78292761,3199.2,3199.0,1.56221929]
[1641648606766,0.78292761,3199.2,3199.1,0.07813]
[1641648607965,1.04390347,3199.5,3199.1,1.64017847]
[1641648608164,1.56585521,3199.9,3199.2,14.95]
[1641648608366,1.56585521,3199.9,3199.8,2.00479]
[1641648608567,1.56585521,3199.9,3199.8,2.66059]
[1641648608770,0.69498704,3200.2,3199.8,2.66059]
[1641648609369,0.42599187,3200.1,3199.8,2.66059]
[1641648609570,0.03,3200.2,3199.8,2.66059]
[1641648611772,0.03,3200.2,3199.9,0.07811]
[1641648613674,2.00479,3200.9,3200.1,13.45]
[1641648613875,2.00479,3200.9,3200.2,0.0781]
[1641648614176,0.03,3201.1,3200.2,0.0781]
[1641648614375,0.03,3201.1,3201.0,2.00479]
[1641648614577,0.03,3201.1,3201.0,2.64619]
[1641648615377,0.4434754,3201.1,3201.0,2.64619]
[1641648616476,0.4434754,3201.1,3201.0,0.51895208]
[1641648617077,0.03,3201.1,3201.0,0.51895208]
[1641648619581,2.00479,3201.7,3201.0,3.06122419]
[1641648619780,2.00479,3201.7,3201.1,0.07809]
[1641648620583,2.00479,3201.7,3201.2,2.00479]
[1641648621380,2.00479,3201.7,3201.2,2.65069]
[1641648621582,2.03479,3202.1,3201.3,6.24742663]
[1641648621583,0.03,3202.1,3201.3,6.24742663]
[1641648621782,0.03,3202.1,3201.4,0.07807]
[1641648621983,0.640787,3202.0,3201.4,0.07807]
[1641648622382,0.03,3202.1,3201.4,0.07807]
[1641648622584,2.00479,3202.0,3201.4,0.07807]
[1641648622783,2.00479,3202.0,3201.5,5.19055905]
[1641648622982,2.00479,3202.0,3201.6,1.63901881]
[1641648623582,0.03,3202.1,3201.7,0.85614371]
[1641648624181,0.670787,3202.1,3201.7,0.85614371]
[1641648624381,0.03,3202.1,3201.7,0.85614371]
[1641648624583,0.03,3202.1,3201.3,0.07806]
[1641648624781,0.7604,3202.1,3201.3,0.07806]
[1641648624989,0.264788,3202.0,3201.3,0.07806]
[1641648626485,2.00479,3201.8,3201.3,0.07806]
[1641648626686,0.264788,3201.7,3201.3,0.07806]
[1641648627986,1.065488,3201.7,3201.2,3.40614725]
[1641648628187,1.49992259,3201.6,3200.8,2.00479]
[1641648628386,0.264788,3201.5,3200.8,2.00479]
[1641648628588,2.00479,3201.2,3200.8,2.00479]
[1641648628887,0.905575,3201.1,3200.8,2.00479]
[1641648629288,1.49992259,3200.9,3200.2,2.00479]
[1641648629488,0.264788,3200.8,3200.2,2.00479]
[1641648630591,2.00479,3200.6,3199.9,1.63986792]
[1641648630790,2.00479,3200.6,3199.9,15.08986792]
[1641648631390,2.00479,3200.6,3200.3,13.45]
[1641648631691,0.640787,3201.1,3200.4,0.0781]
[1641648631890,0.640787,3201.1,3200.3,0.0781]
[1641648632291,0.264788,3201.0,3200.3,0.0781]
[1641648632492,0.264788,3201.0,3200.6,2.00479]
[1641648641998,0.264788,3201.0,3200.6,2.84839]
[1641648646903,0.640787,3201.1,3200.6,2.84839]
[1641648647303,0.905575,3201.1,3200.6,2.84839]
[1641648654210,0.905575,3201.1,3200.6,0.8436]
[1641648654410,0.905575,3201.1,3200.3,0.0781]
[1641648655011,0.905575,3201.1,3200.2,0.0781]
[1641648656812,4.00958,3201.2,3200.2,0.0781]
[1641648658514,4.00958,3201.2,3200.4,13.45]
[1641648658717,4.00958,3201.2,3200.5,0.0781]
[1641648659914,2.40549759,3201.1,3200.4,0.86460459]
[1641648660116,1.49992259,3200.8,3200.4,0.78650459]
[1641648660317,1.56225834,3200.7,3199.9,1.31084098]
[1641648660515,0.264788,3200.6,3199.9,1.31084098]
[1641648660818,2.00479,3200.1,3199.9,1.31084098]
[1641648661017,2.93849,3200.1,3199.9,1.31084098]
[1641648661219,2.93849,3200.1,3199.7,2.88385015]
[1641648661417,3.203278,3200.1,3199.7,1.31084098]
[1641648662016,0.640787,3200.0,3199.7,1.31084098]
[1641648662417,0.640787,3200.0,3199.5,2.07160503]
[1641648662619,0.640787,3200.0,3199.5,0.49859586]
[1641648663018,0.640787,3200.0,3199.2,0.07813]
[1641648663419,2.14070959,3200.0,3199.2,0.07813]
[1641648663619,2.14070959,3200.0,3199.3,0.49863346]
[1641648663620,1.49992259,3199.7,3199.3,0.49863346]
[1641648664122,0.264788,3199.6,3199.3,0.49863346]
[1641648664319,0.264788,3199.6,3199.1,0.49863346]
[1641648665121,1.49992259,3199.2,3199.1,0.49863346]
[1641648665423,3.32939759,3199.2,3198.5,1.31084098]
[1641648665622,1.49992259,3198.9,3198.5,1.31084098]
[1641648665822,0.264788,3198.8,3198.5,1.31084098]
[1641648666221,0.264788,3198.8,3198.3,1.16364572]
[1641648666425,0.264788,3198.8,3198.3,0.49874159]
[1641648666835,4.00958,3198.4,3198.3,0.49874159]
[1641648667025,4.00958,3198.4,3198.1,1.34184098]
[1641648667325,4.00958,3198.4,3198.1,0.031]
[1641648668325,4.274368,3198.4,3198.2,0.49878249]
[1641648669524,4.274368,3198.4,3198.1,0.031]
[1641648671627,4.00958,3198.4,3198.1,0.031]
[1641648672729,0.264788,3198.3,3198.1,0.031]
[1641648673529,2.00479,3198.4,3198.1,0.031]
[1641648673730,2.00479,3198.4,3198.2,0.49878274]
[1641648674134,44.1965,3199.2,3198.2,0.49878274]
[1641648674339,22.1301,3199.3,3198.3,13.52814]
[1641648674630,1.0535763,3199.9,3198.3,15.02814]
[1641648674829,2.00479,3199.6,3198.8,2.00479]
[1641648675029,0.905575,3199.5,3198.9,0.07813]
[1641648676131,1.49992259,3199.4,3198.5,2.00479]
[1641648676329,1.49992259,3199.4,3198.4,2.06120687]
[1641648676530,0.640787,3199.5,3198.4,2.06120687]
[1641648676735,0.640787,3199.5,3198.5,0.07814]
[1641648676931,2.00479,3198.6,3198.5,0.07814]
[1641648677131,2.00479,3198.6,3198.3,0.07815]
[1641648677531,2.00479,3198.6,3198.1,14.41904971]
[1641648677532,2.00479,3198.6,3198.2,0.07815]
[1641648678331,2.00479,3198.6,3198.3,0.49875661]
[1641648678532,2.00479,3198.6,3198.4,0.07815]
[1641648678731,2.645577,3198.6,3198.4,0.07815]
[1641648678932,1.49992259,3198.5,3198.3,0.49875661]
[1641648679333,0.264788,3198.4,3198.1,0.031]
[1641648680831,2.645577,3198.6,3198.1,0.031]
[1641648681033,2.645577,3198.6,3198.1,0.7261]
[1641648681232,2.00479,3198.6,3198.1,0.7261]
[1641648681843,2.00479,3198.6,3198.1,14.1761]
[1641648682434,2.00479,3198.6,3198.2,0.07815]
[1641648682834,22.8406,3199.6,3198.2,0.07815]
[1641648683234,22.8406,3199.6,3198.4,1.38925808]
[1641648683636,22.8406,3199.6,3198.5,0.07813]
[1641648684737,0.7925018,3200.1,3198.7,13.45]
[1641648684937,2.00479,3199.5,3198.8,15.53292]
[1641648685138,2.00479,3199.5,3198.8,16.43052]
[1641648686238,2.910365,3199.5,3198.8,2.98052]
[1641648686938,4.915155,3199.5,3198.8,0.97573]
[1641648687139,4.915155,3199.5,3198.6,0.78994815]
[1641648687939,4.915155,3199.5,3198.5,0.86807815]
[1641648688939,2.00479,3199.1,3198.5,0.86807815]
[1641648689140,2.00479,3199.1,3198.5,14.31807815]
[1641648690142,2.00479,3199.1,3198.5,13.52813]
[1641648690543,2.00479,3199.1,3198.5,14.56101403]
[1641648691143,2.00479,3199.1,3198.5,15.35096218]
[1641648692144,2.00479,3199.1,3198.6,1.28864517]
[1641648692346,2.00479,3199.1,3198.7,0.07814]
[1641648693145,2.00479,3199.1,3198.7,0.86808815]
[1641648693847,2.00479,3199.1,3198.7,0.07814]
[1641648694544,2.00479,3199.1,3198.7,0.68474]
[1641648695046,2.00479,3199.1,3198.7,1.47468815]
[1641648695245,2.00479,3199.1,3198.7,1.39654815]
[1641648696347,2.00479,3199.1,3198.7,0.6066]
[1641648697548,0.264788,3199.0,3198.7,0.6066]
[1641648697746,0.264788,3199.0,3198.6,0.07814]
[1641648697950,1.49992259,3198.8,3198.5,0.78994815]
[1641648698146,1.49992259,3198.8,3198.1,0.031]
[1641648698147,0.905575,3198.7,3198.1,0.031]
[1641648698349,1.49992259,3198.6,3198.2,1.31084098]
[1641648698745,0.264788,3198.5,3198.2,1.31084098]
[1641648699147,4.00958,3198.3,3198.2,1.31084098]
[1641648699346,4.274368,3198.3,3198.2,1.31084098]
[1641648699547,4.274368,3198.3,3198.1,0.031]
[1641648702551,2.269578,3198.3,3198.1,0.031]
[1641648712170,25.44379,3198.9,3198.2,1.5]
[1641648712367,2.00479,3198.9,3198.3,1.64073057]
[1641648712570,2.00479,3198.9,3198.3,0.07815]
[1641648712571,2.910365,3198.9,3198.3,0.07815]
[1641648713168,2.910365,3198.9,3198.4,2.32188072]
[1641648713369,2.910365,3198.9,3198.5,0.07814]
[1641648714570,2.910365,3198.9,3198.4,4.32667072]
[1641648716971,2.910365,3198.9,3198.4,2.00479]
[1641648721177,2.910365,3198.9,3198.4,2.79630214]
[1641648722876,2.910365,3198.9,3198.5,1.29031797]
[1641648724177,2.910365,3198.9,3198.6,0.79151214]
[1641648726280,4.41028759,3198.9,3198.6,0.79151214]
[1641648726483,1.49992259,3198.7,3198.6,0.79151214]
[1641648726681,2.17102259,3198.7,3198.6,0.79151214]
[1641648726881,2.43581059,3198.7,3198.6,0.79151214]
[1641648727283,0.935888,3198.7,3198.6,1.214e-05]
[1641648727483,2.940678,3198.7,3198.1,1.34184098]
[1641648727686,2.940678,3198.7,3198.1,0.031]
[1641648728785,2.940678,3198.7,3198.2,0.4988401]
[1641648729787,4.44060059,3198.7,3198.2,0.4988401]
[1641648729985,1.49992259,3198.5,3198.2,0.4988401]
[1641648730186,0.264788,3198.4,3198.2,0.4988401]
[1641648730387,1.49992259,3198.3,3198.2,0.4988401]
[1641648730586,1.49992259,3198.3,3198.2,4.01e-05]
[1641648731401,3.50471259,3198.3,3198.1,0.031]
[1641648731590,0.264788,3198.2,3198.1,0.031]
[1641648731990,0.905575,3198.2,3198.1,0.031]
[1641648732892,2.46906684,3198.2,3197.6,2.00479]
[1641648733091,1.49992259,3197.8,3197.6,2.00479]
[1641648733290,0.264788,3197.7,3197.6,2.00479]
[1641648733690,0.264788,3197.7,3197.6,9e-05]
[1641648733896,0.264788,3197.7,3197.4,1.31084098]
[1641648734990,0.264788,3197.7,3197.2,0.031]
[1641648735192,0.264788,3197.7,3197.2,0.10917]
[1641648735391,2.269578,3197.7,3197.2,0.031]
[1641648736492,2.269578,3197.7,3197.3,0.07817]
[1641648736694,2.269578,3197.7,3197.2,0.031]
[1641648737193,2.00479,3197.7,3197.2,0.031]
[1641648737392,2.00479,3197.7,3197.3,0.07817]
[1641648737692,2.269578,3197.7,3197.3,0.07817]
[1641648738695,2.269578,3197.7,3197.2,0.031]
[1641648740097,2.269578,3197.7,3197.3,0.07817]
[1641648740295,2.269578,3197.7,3197.2,0.10917]
[1641648740495,2.269578,3197.7,3197.2,0.031]
[1641648740696,2.00479,3197.7,3197.2,0.031]
[1641648740896,2.269578,3197.7,3197.2,0.031]
[1641648741097,4.45070059,3197.7,3197.2,0.031]
[1641648741496,2.00479,3197.3,3197.2,0.031]
[1641648741697,2.910365,3197.3,3197.0,1.31084098]
[1641648741899,1.49992259,3197.1,3196.8,1.57300917]
[1641648742297,0.264788,3197.0,3196.8,1.57300917]
[1641648742498,0.264788,3197.0,3196.5,1.57300917]
[1641648743299,1.76471059,3197.0,3196.5,1.57300917]
[1641648743499,4.00958,3196.6,3196.5,1.57300917]
[1641648743901,4.00958,3196.6,3196.3,0.031]
[1641648744801,0.264788,3196.5,3196.3,0.031]
[1641648745001,2.81691204,3196.6,3196.3,0.031]
[1641648745801,0.264788,3196.5,3196.3,0.031]
[1641648747406,1.49992259,3196.4,3196.3,0.031]
[1641648747804,0.264788,3196.5,3196.3,0.031]
[1641648748204,2.14501204,3196.6,3196.3,0.031]
[1641648748407,2.40980004,3196.6,3196.3,0.031]
[1641648748808,1.49992259,3196.4,3196.3,0.031]
[1641648749036,1.76471059,3196.4,3196.3,0.031]
[1641648749607,0.264788,3196.4,3196.3,0.031]
[1641648750811,1.76471059,3196.4,3196.3,0.031]
[1641648751212,0.264788,3196.4,3196.3,0.031]
[1641648751713,2.14501204,3196.6,3196.3,0.031]
[1641648752711,2.40980004,3196.6,3196.3,0.031]
[1641648756923,2.14501204,3196.6,3196.3,0.031]
[1641648757120,2.14501204,3196.6,3196.3,0.7793]
[1641648757520,2.14501204,3196.6,3196.4,0.264788]
[1641648758520,0.14022204,3196.6,3196.4,0.264788]
[1641648758721,0.79360768,3197.6,3196.5,1.5782]
[1641648759022,0.79360768,3197.6,3196.5,17.93404075]
[1641648759220,1.84718398,3197.8,3196.7,1.5]
[1641648759423,0.79360768,3197.8,3196.8,0.07818]
[1641648759619,2.00479,3197.5,3196.8,0.07818]
[1641648759822,2.00479,3197.5,3196.9,0.264788]
[1641648760020,2.645577,3197.5,3197.0,0.07818]
[1641648760321,2.645577,3197.5,3197.1,0.264788]
[1641648761521,2.00479,3197.5,3197.1,0.264788]
[1641648763023,2.645577,3197.5,3197.1,0.264788]
[1641648763422,2.00479,3197.5,3197.1,0.264788]
[1641648765121,0.640787,3197.4,3197.1,0.264788]
[1641648765522,2.00479,3197.5,3197.1,0.264788]
[1641648765724,2.00479,3197.5,3197.1,1.043888]
[1641648770232,2.00479,3197.5,3197.1,0.264788]
[1641648770932,3.50471259,3197.5,3197.1,0.264788]
[1641648771135,1.56396866,3197.2,3196.9,0.79454756]
[1641648771532,2.00479,3197.0,3196.9,0.79454756]
[1641648773435,2.269578,3197.0,3196.9,0.79454756]
[1641648774235,2.269578,3197.0,3196.7,0.79454756]
[1641648774435,2.910365,3197.0,3196.7,0.79454756]
[1641648775636,4.915155,3197.0,3196.7,0.79454756]
[1641648776237,4.915155,3197.0,3196.6,1.05933556]
[1641648776840,4.650367,3197.0,3196.6,1.05933556]
[1641648778842,4.650367,3197.0,3196.7,1.2936034]
[1641648779843,4.650367,3197.0,3196.8,0.79454756]
[1641648780042,4.650367,3197.0,3196.8,1.05933556]
[1641648780244,4.00958,3197.0,3196.8,1.05933556]
[1641648781043,4.00958,3197.0,3196.9,1.2936034]
[1641648781843,4.00958,3197.0,3196.9,0.79454756]
[1641648782043,4.00958,3197.0,3196.8,0.79454756]
[1641648782243,4.274368,3197.0,3196.8,0.79454756]
[1641648783245,4.00958,3197.0,3196.8,0.79454756]
[1641648783444,4.00958,3197.0,3196.7,1.05933556]
[1641648784446,4.00958,3197.0,3196.8,1.29361715]
[1641648785650,4.00958,3197.0,3196.9,0.79454756]
[1641648787147,4.274368,3197.0,3196.9,0.79454756]
[1641648787848,4.274368,3197.0,3196.8,1.29361715]
[1641648788850,4.274368,3197.0,3196.8,0.79454756]
[1641648789654,4.949468,3197.0,3196.8,0.79454756]
[1641648791053,4.949468,3197.0,3196.7,0.79454756]
[1641648791852,6.44939059,3197.0,3196.7,0.79454756]
[1641648792052,6.44939059,3197.0,3196.8,0.79454756]
[1641648792756,6.44939059,3197.0,3196.4,0.49906959]
[1641648792954,1.49992259,3196.5,3196.3,1.35475848]
[1641648793154,1.49992259,3196.5,3196.3,0.031]
[1641648793355,0.905575,3196.4,3196.3,0.031]
[1641648793855,2.910365,3196.4,3196.3,0.031]
[1641648797056,2.910365,3196.4,3195.6,1.32375848]
[1641648797057,4.41028759,3196.4,3195.6,1.32375848]
[1641648797258,1.49992259,3196.1,3195.6,1.32375848]
[1641648797558,2.42552259,3196.1,3195.5,1.32375848]